fUSD/lending_fUSD_20260405
["ID","MTS","AMOUNT","RATE_DAILY","PERIOD"]
[419794197,1775382660406,-1575.70159455,0.000159,5]
[419794198,1775382660417,-152.0,0.000159,5]
[419794199,1775382660429,-152.0,0.000159,5]
[419794200,1775382660439,-152.0,0.000159,5]
[419794201,1775382660451,-154.50523658,0.000159,5]
[419794202,1775382660461,-1253.32555579,0.000159,2]
[419794203,1775382660472,-167.9673,0.000159,2]
[419794204,1775382660482,-25000.0,0.000159,3]
[419794205,1775382660493,-1075.04071767,0.000159,2]
[419794206,1775382660503,-384.40691466,0.000159,2]
[419794207,1775382660515,-201.33207727,0.000159,2]
[419794208,1775382660524,-7210.01239016,0.000159,2]
[419794209,1775382660535,-21183.2758757,0.000159,2]
[419794210,1775382660545,-672.962147,0.000159,2]
[419794211,1775382660555,-672.962147,0.000159,2]
[419794212,1775382660566,-672.962147,0.000159,2]
[419794213,1775382660576,-151.0,0.000159,2]
[419794214,1775382660587,-672.962147,0.000159,2]
[419794215,1775382660598,-151.0,0.000159,2]
[419794216,1775382660609,-151.0,0.000159,2]
[419794217,1775382660619,-2524.0,0.000159,5]
[419794218,1775382660628,-2019.0,0.000159,5]
[419794219,1775382660639,-488.611803,0.00015901,2]
[419794220,1775382660649,-488.611803,0.00015901,2]
[419794221,1775382660659,-488.611803,0.00015901,2]
[419794222,1775382660670,-488.611803,0.00015901,2]
[419794223,1775382660681,-151.0,0.00015901,2]
[419794224,1775382660691,-2000.0,0.00015901,2]
[419794225,1775382660701,-151.0,0.00015901,2]
[419794226,1775382660711,-151.0,0.00015901,2]
[419794227,1775382660721,-1910.18787185,0.00015903,2]
[419794228,1775382660731,-233.51889341,0.00015903,2]
[419794229,1775382660742,-994.29561144,0.00015903,2]
[419794230,1775382660753,-150.0,0.00015904,2]
[419794231,1775382660765,-422.0,0.00015906,2]
[419794232,1775382660775,-1000.0,0.00015907,2]
[419794233,1775382660785,-1000.0,0.00015907,2]
[419794234,1775382660795,-1000.0,0.00015907,2]
[419794235,1775382660805,-1000.0,0.00015907,2]
[419794236,1775382660816,-1000.0,0.00015907,2]
[419794237,1775382660826,-1000.0,0.00015907,2]
[419794238,1775382660836,-1000.0,0.00015907,2]
[419794239,1775382660846,-1000.0,0.00015907,2]
[419794240,1775382660856,-266.452,0.00015907,2]
[419794241,1775382660866,-150.0,0.0001591,2]
[419794242,1775382660876,-150.0,0.00015911,2]
[419794243,1775382660886,-150.0,0.00015913,2]
[419794244,1775382660897,-150.0,0.00015913,2]
[419794245,1775382660908,-151.0,0.00015913,2]
[419794246,1775382660918,-151.0,0.00015913,2]
[419794247,1775382660928,-151.0,0.00015913,2]
[419794248,1775382660939,-150.0,0.00015916,2]
[419794249,1775382660949,-150.0,0.00015923,2]
[419794250,1775382660960,-150.0,0.00015928,2]
[419794251,1775382660970,-150.0,0.0001593,2]
[419794252,1775382660981,-150.0,0.00015936,2]
[419794253,1775382660991,-150.0,0.00015937,2]
[419794254,1775382661002,-243.30922088,0.00015941,2]
[419794255,1775382661013,-150.0,0.00015942,2]
[419794256,1775382661024,-150.0,0.00015942,2]
[419794257,1775382661036,-150.0,0.00015946,2]
[419794258,1775382661048,-150.0,0.00015947,2]
[419794259,1775382661060,-150.0,0.00015948,2]
[419794260,1775382661069,-1337.87763051,0.00015956,2]
[419794261,1775382661079,-150.0,0.00015958,2]
[419794262,1775382661089,-11743.7453657,0.00015961,2]
[419794263,1775382661100,-1000.0,0.00015962,2]
[419794264,1775382661113,-150.0,0.00015964,2]
[419794265,1775382661124,-150.0,0.00015968,2]
[419794266,1775382661136,-150.0,0.00015971,2]
[419794267,1775382661147,-150.0,0.00015971,2]
[419794268,1775382661157,-440.0,0.00015974,2]
[419794269,1775382661167,-150.0,0.00015974,2]
[419794270,1775382661177,-150.0,0.00015979,2]
[419794271,1775382661187,-150.0,0.00015982,2]
[419794272,1775382661196,-167.5194442,0.00015984,2]
[419794273,1775382661206,-150.00000001,0.00015984,2]
[419794274,1775382661215,-920.01697605,0.00015984,2]
[419794275,1775382661225,-777.49539962,0.00015984,2]
[419794276,1775382661234,-315.0,0.00015988,2]
[419794277,1775382661244,-686.36317116,0.0001599,2]
[419794278,1775382661253,-192.769235,0.00015997,2]
[419794279,1775382661265,-151.0,0.00015997,2]
[419794280,1775382661275,-666.0,0.00015999,2]
[419794281,1775382661284,-666.0,0.00015999,2]
[419794282,1775382661294,-666.0,0.00015999,2]
[419794283,1775382661304,-383.01920678,0.00015999,2]
[419794284,1775382661314,-214.78070273,0.00015999,2]
[419794285,1775382661325,-6000.0000009,0.00015999,2]
[419794286,1775382661336,-214.21185671,0.00016,2]
[419794287,1775382661347,-150.14541726,0.00016,2]
[419794288,1775382661357,-238.91917798,0.00016,2]
[419794289,1775382661367,-245.0843554,0.00016,2]
[419794290,1775382661377,-150.17540857,0.00016,2]
[419794291,1775382661386,-151.22967101,0.00016,2]
[419794292,1775382661396,-151.01430456,0.00016,2]
[419794293,1775382661406,-151.90807937,0.00016,2]
[419794294,1775382661416,-218.5136836,0.00016,2]
[419794295,1775382661426,-150.60277619,0.00016,2]
[419794296,1775382661437,-154.07899059,0.00016,2]
[419794297,1775382661446,-287.38140471,0.00016,2]
[419794298,1775382661456,-151.75828689,0.00016,2]
[419794299,1775382661466,-229.30177922,0.00016,2]
[419794300,1775382661476,-76317.31278248,0.00016,2]
[419794301,1775382661486,-2483475.98261999,0.00016,2]
[419794302,1775382663147,-685.0,8.793e-05,2]
[419794303,1775382663175,-23133.76020283,8.793e-05,2]
[419794304,1775382663557,-2142.49137385,8.793e-05,2]
[419794305,1775382663568,-262.0,8.793e-05,2]
[419794306,1775382664054,-457.93313111,8.793e-05,2]
[419794307,1775382664079,-520.37711651,8.793e-05,2]
[419794308,1775382718947,3591.26589346,8.613e-05,2]
[419794309,1775382731864,6408.74410654,8.712e-05,2]
[419794310,1775382731887,3145.48220524,8.712e-05,2]
[419794311,1775382750602,329.2585,8.668e-05,2]
[419794312,1775382781159,300.0,8.711e-05,2]
[419794313,1775382823532,2437.5745,8.668e-05,2]
[419794314,1775382839490,1200.0,8.711e-05,2]
[419794315,1775382841542,150.0,8.711e-05,2]
[419794316,1775382842820,300.0,8.711e-05,2]
[419794317,1775382892628,-500.0,8.712e-05,2]
[419794318,1775382892661,-500.0,8.712e-05,2]
[419794319,1775382892693,-562.02817256,8.712e-05,2]
[419794320,1775382892725,-500.0,8.712e-05,2]
[419794321,1775382892758,-500.0,8.712e-05,2]
[419794322,1775382892789,-500.0,8.712e-05,2]
[419794323,1775382892821,-500.0,8.712e-05,2]
[419794324,1775382892852,-500.0,8.712e-05,2]
[419794325,1775382892882,-500.0,8.712e-05,2]
[419794326,1775382892915,-500.0,8.712e-05,2]
[419794327,1775382892947,-500.0,8.712e-05,2]
[419794328,1775382892977,-500.0,8.712e-05,2]
[419794329,1775382893006,-650.0,8.712e-05,2]
[419794330,1775382893036,-500.0,8.712e-05,2]
[419794331,1775382893066,-500.0,8.712e-05,2]
[419794332,1775382893097,-500.0,8.712e-05,2]
[419794333,1775382893130,-500.0,8.712e-05,2]
[419794334,1775382893160,-500.0,8.712e-05,2]
[419794335,1775382893190,-500.0,8.712e-05,2]
[419794336,1775382893220,-500.0,8.712e-05,2]
[419794337,1775382893250,-500.0,8.712e-05,2]
[419794338,1775382893281,-500.0,8.712e-05,2]
[419794339,1775382893313,-500.0,8.712e-05,2]
[419794340,1775382893346,-500.0,8.712e-05,2]
[419794341,1775382893380,-500.0,8.712e-05,2]
[419794342,1775382893407,-250.0,8.712e-05,2]
[419794343,1775382893438,-5000.0,8.712e-05,2]
[419794344,1775382893464,-275.0,8.712e-05,2]
[419794345,1775382893493,-34862.97182744,8.713e-05,2]
[419794346,1775382992574,-1200.0,8.712e-05,2]
[419794347,1775382992613,-300.0,8.712e-05,2]
[419794348,1775383013921,-2137.69479476,8.713e-05,2]
[419794349,1775383014053,-10000.01,8.713e-05,2]
[419794350,1775383014239,-10000.01,8.713e-05,2]
[419794351,1775383016672,-10000.01,8.713e-05,2]
[419794352,1775383019659,-10000.01,8.713e-05,2]
[419794353,1775383019799,-10000.01,8.713e-05,2]
[419794354,1775383019897,-10000.01,8.713e-05,2]
[419794355,1775383021774,300.0,8.712e-05,2]
[419794356,1775383022355,150.0,8.712e-05,2]
[419794357,1775383026085,500.0,8.712e-05,2]
[419794358,1775383026119,500.0,8.712e-05,2]
[419794359,1775383026158,500.0,8.712e-05,2]
[419794360,1775383026235,500.0,8.712e-05,2]
[419794361,1775383026385,500.0,8.712e-05,2]
[419794362,1775383026421,194.90217402,8.712e-05,2]
[419794363,1775383026497,500.0,8.712e-05,2]
[419794364,1775383030325,250.0,8.712e-05,2]
[419794365,1775383039696,500.0,8.712e-05,2]
[419794366,1775383039732,460.09782598,8.712e-05,2]
[419794367,1775383039758,39.90217402,8.712e-05,2]
[419794368,1775383039805,500.0,8.712e-05,2]
[419794369,1775383039845,500.0,8.712e-05,2]
[419794370,1775383039885,500.0,8.712e-05,2]
[419794371,1775383039920,500.0,8.712e-05,2]
[419794372,1775383039956,500.0,8.712e-05,2]
[419794373,1775383039996,500.0,8.712e-05,2]
[419794374,1775383040037,500.0,8.712e-05,2]
[419794375,1775383040075,500.0,8.712e-05,2]
[419794376,1775383040121,500.0,8.712e-05,2]
[419794377,1775383040192,460.10782598,8.712e-05,2]
[419794378,1775383040218,39.89217402,8.712e-05,2]
[419794379,1775383040265,500.0,8.712e-05,2]
[419794380,1775383040299,500.0,8.712e-05,2]
[419794381,1775383040354,500.0,8.712e-05,2]
[419794382,1775383040446,500.0,8.712e-05,2]
[419794383,1775383040496,500.0,8.712e-05,2]
[419794384,1775383040549,500.0,8.712e-05,2]
[419794385,1775383040582,500.0,8.712e-05,2]
[419794386,1775383040619,500.0,8.712e-05,2]
[419794387,1775383040677,500.0,8.712e-05,2]
[419794388,1775383040712,460.11782598,8.712e-05,2]
[419794389,1775383040738,39.88217402,8.712e-05,2]
[419794390,1775383040790,500.0,8.712e-05,2]
[419794391,1775383040832,500.0,8.712e-05,2]
[419794392,1775383040876,500.0,8.712e-05,2]
[419794393,1775383040918,500.0,8.712e-05,2]
[419794394,1775383040966,500.0,8.712e-05,2]
[419794395,1775383041000,500.0,8.712e-05,2]
[419794396,1775383041041,500.0,8.712e-05,2]
[419794397,1775383041086,500.0,8.712e-05,2]
[419794398,1775383041124,500.0,8.712e-05,2]
[419794399,1775383041177,460.12782598,8.712e-05,2]
[419794400,1775383041207,39.87217402,8.712e-05,2]
[419794401,1775383041260,500.0,8.712e-05,2]
[419794402,1775383041297,500.0,8.712e-05,2]
[419794403,1775383041333,500.0,8.712e-05,2]
[419794404,1775383041382,633.97166954,8.712e-05,2]
[419794405,1775383053607,150.0,8.451e-05,2]
[419794406,1775383055236,500.0,8.712e-05,2]
[419794407,1775383055275,500.0,8.712e-05,2]
[419794408,1775383055313,500.0,8.712e-05,2]
[419794409,1775383055352,500.0,8.712e-05,2]
[419794410,1775383055393,500.0,8.712e-05,2]
[419794411,1775383055431,176.16615644,8.712e-05,2]
[419794412,1775383055474,323.83384356,8.712e-05,2]
[419794413,1775383055543,500.0,8.712e-05,2]
[419794414,1775383055606,500.0,8.712e-05,2]
[419794415,1775383055689,500.0,8.712e-05,2]
[419794416,1775383055758,500.0,8.712e-05,2]
[419794417,1775383055824,500.0,8.712e-05,2]
[419794418,1775383055889,500.0,8.712e-05,2]
[419794419,1775383055946,500.0,8.712e-05,2]
[419794420,1775383056010,500.0,8.712e-05,2]
[419794421,1775383056065,500.0,8.712e-05,2]
[419794422,1775383056121,176.17615644,8.712e-05,2]
[419794423,1775383056158,323.82384356,8.712e-05,2]
[419794424,1775383056207,500.0,8.712e-05,2]
[419794425,1775383056288,500.0,8.712e-05,2]
[419794426,1775383056368,500.0,8.712e-05,2]
[419794427,1775383056430,500.0,8.712e-05,2]
[419794428,1775383056548,500.0,8.712e-05,2]
[419794429,1775383058802,500.0,8.712e-05,2]
[419794430,1775383063247,-1614.16949774,8.713e-05,2]
[419794431,1775383065611,-5000.01,8.713e-05,2]
[419794432,1775383065728,-5000.01,8.713e-05,2]
[419794433,1775383065868,-5000.01,8.713e-05,2]
[419794434,1775383065973,-5000.01,8.713e-05,2]
[419794435,1775383066129,-5000.01,8.713e-05,2]
[419794436,1775383070411,630.29490257,8.712e-05,2]
[419794437,1775383071958,500.0,8.712e-05,2]
[419794438,1775383072021,500.0,8.712e-05,2]
[419794439,1775383072124,305.56961058,8.712e-05,2]
[419794440,1775383072593,500.0,8.712e-05,2]
[419794441,1775383076918,266.34841531,8.712e-05,2]
[419794442,1775383084863,500.0,8.712e-05,2]
[419794443,1775383085025,500.0,8.712e-05,2]
[419794444,1775383085129,359.09471069,8.712e-05,2]
[419794445,1775383085281,500.0,8.712e-05,2]
[419794446,1775383086610,236.48213395,8.712e-05,2]
[419794447,1775383086740,202.2202269,8.712e-05,2]
[419794448,1775383086763,297.7797731,8.712e-05,2]
[419794449,1775383086797,500.0,8.712e-05,2]
[419794450,1775383086865,500.0,8.712e-05,2]
[419794451,1775383086897,500.0,8.712e-05,2]
[419794452,1775383087055,271.99987391,8.712e-05,2]
[419794453,1775383087112,500.0,8.712e-05,2]
[419794454,1775383087162,500.0,8.712e-05,2]
[419794455,1775383087362,500.0,8.712e-05,2]
[419794456,1775383087482,500.0,8.712e-05,2]
[419794457,1775383090493,1152.33695723,8.712e-05,3]
[419794458,1775383090550,1152.33695723,8.712e-05,3]
[419794459,1775383091263,930.23035299,8.685e-05,2]
[419794460,1775383091288,2969.76964701,8.685e-05,2]
[419794461,1775383091650,354.0,8.685e-05,2]
[419794462,1775383093165,500.0,8.712e-05,2]
[419794463,1775383097387,1700.0,8.7e-05,3]
[419794464,1775383099487,3500.0,8.8e-05,3]
[419794465,1775383101251,732.13223965,8.712e-05,2]
[419794466,1775383101288,444.10811334,8.712e-05,2]
[419794467,1775383101319,288.02412631,8.712e-05,2]
[419794468,1775383101354,732.13223965,8.712e-05,2]
[419794469,1775383101388,732.13223965,8.712e-05,2]
[419794470,1775383101432,732.13223965,8.712e-05,2]
[419794471,1775383101471,732.13223965,8.712e-05,2]
[419794472,1775383101509,732.13223965,8.712e-05,2]
[419794473,1775383101547,732.13223965,8.712e-05,2]
[419794474,1775383101600,319.19243579,8.712e-05,2]
[419794475,1775383101628,412.93980386,8.712e-05,2]
[419794476,1775383101722,732.13223965,8.712e-05,2]
[419794477,1775383101762,5300.0,8.9e-05,3]
[419794478,1775383101804,732.13223965,8.712e-05,2]
[419794479,1775383101838,732.13223965,8.712e-05,2]
[419794480,1775383101876,732.13223965,8.712e-05,2]
[419794481,1775383101912,732.13223965,8.712e-05,2]
[419794482,1775383101947,732.13223965,8.712e-05,2]
[419794483,1775383101984,194.27675824,8.712e-05,2]
[419794484,1775383102009,537.85548141,8.712e-05,2]
[419794485,1775383102042,732.13223965,8.712e-05,2]
[419794486,1775383102080,732.13223965,8.712e-05,2]
[419794487,1775383102167,732.13223965,8.712e-05,2]
[419794488,1775383102208,732.13223965,8.712e-05,2]
[419794489,1775383102249,732.13223965,8.712e-05,2]
[419794490,1775383102320,732.13223965,8.712e-05,2]
[419794491,1775383102409,69.36108069,8.712e-05,2]
[419794492,1775383102437,662.77115896,8.712e-05,2]
[419794493,1775383102473,732.13223965,8.712e-05,2]
[419794494,1775383102514,732.13223965,8.712e-05,2]
[419794495,1775383102549,732.13223965,8.712e-05,2]
[419794496,1775383102585,732.13223965,8.712e-05,2]
[419794497,1775383104155,732.13223965,8.712e-05,2]
[419794498,1775383104208,676.57764279,8.712e-05,2]
[419794499,1775383104236,55.55459686,8.712e-05,2]
[419794500,1775383104280,732.13223965,8.712e-05,2]
[419794501,1775383104323,732.13223965,8.712e-05,2]
[419794502,1775383104365,732.13223965,8.712e-05,2]
[419794503,1775383104407,732.13223965,8.712e-05,2]
[419794504,1775383104443,732.13223965,8.712e-05,2]
[419794505,1775383104479,732.13223965,8.712e-05,2]
[419794506,1775383104514,551.66196524,8.712e-05,2]
[419794507,1775383104643,7100.0,9e-05,3]
[419794509,1775383159766,-40241.6395,8.613e-05,2]
[419794510,1775383159793,-1069.49567053,8.613e-05,2]
[419794511,1775383159819,-273.0,8.613e-05,2]
[419794512,1775383159845,-11515.86482947,8.685e-05,2]
[419794513,1775383180647,5000.01,8.613e-05,2]
[419794514,1775383180669,1773.592,8.613e-05,2]
[419794515,1775383230771,500.0,8.414e-05,2]
[419794516,1775383236688,150.0,8.424e-05,2]
[419794517,1775383236831,203.95269847,0.0001,7]
[419794518,1775383238476,305.92904771,0.0001,7]
[419794519,1775383261493,300.0,8.684e-05,2]
[419794520,1775383286319,2276.418,8.613e-05,2]
[419794521,1775383286342,5000.01,8.613e-05,2]
[419794522,1775383286365,5000.01,8.613e-05,2]
[419794523,1775383286388,5000.01,8.613e-05,2]
[419794524,1775383286410,5000.01,8.613e-05,2]
[419794525,1775383286432,5000.01,8.613e-05,2]
[419794526,1775383286454,5000.01,8.613e-05,2]
[419794527,1775383286476,5000.01,8.613e-05,2]
[419794528,1775383286498,5000.01,8.613e-05,2]
[419794529,1775383286520,5000.01,8.613e-05,2]
[419794536,1775383438321,1500.0,8.281e-05,2]
[419794537,1775383625339,159.57696365,0.00016101,120]
[419794538,1775383640147,1100.0,8.6e-05,3]
[419794539,1775383641772,2200.0,8.7e-05,3]
[419794540,1775383643860,3300.0,8.8e-05,3]
[419794541,1775383647269,1795.90160128,8.9e-05,3]
[419794542,1775383647296,2604.09839872,8.9e-05,3]
[419794543,1775383648329,5600.0,9e-05,3]
[419794544,1775383658592,6869.76908988,8e-05,2]
[419794545,1775383710677,4511.57,7.965e-05,2]
[419794546,1775383761242,-300.0,8.221e-05,2]
[419794547,1775383761265,-1200.0,8.221e-05,2]
[419794548,1775383761285,-300.0,8.221e-05,2]
[419794549,1775383761306,-347.326804,8.221e-05,2]
[419794550,1775383772376,-8355.69035643,8.221e-05,2]
[419794551,1775383772397,-268.0,8.221e-05,2]
[419794552,1775383772417,-20216.57335663,8.221e-05,2]
[419794553,1775383772437,-12136.91,8.222e-05,2]
[419794554,1775383772457,-250.0,8.537e-05,2]
[419794555,1775383772477,-5000.0,8.538e-05,2]
[419794556,1775383772498,-4746.12744259,8.538e-05,2]
[419794557,1775383790542,394.07048167,7.888e-05,2]
[419794559,1775383808355,1534.56684,7.945e-05,2]
[419794561,1775383832369,-3465.87755741,8.538e-05,2]
[419794562,1775383832379,-353.677,8.538e-05,2]
[419794563,1775383832389,-272.0,8.538e-05,2]
[419794564,1775383832398,-250.0,8.55e-05,2]
[419794565,1775383832409,-500.0,8.563e-05,2]
[419794566,1775383832419,-500.0,8.563e-05,2]
[419794567,1775383832429,-500.0,8.563e-05,2]
[419794568,1775383832439,-500.0,8.563e-05,2]
[419794569,1775383832449,-343.58098751,8.563e-05,2]
[419794570,1775383832458,-500.0,8.563e-05,2]
[419794571,1775383832467,-5000.0,8.563e-05,2]
[419794572,1775383832478,-5000.0,8.582e-05,2]
[419794573,1775383832487,-3608.47516561,8.582e-05,2]
[419794574,1775383832497,-515792.90883174,8.584e-05,2]
[419794575,1775383832508,-81033.89070557,8.584e-05,2]
[419794576,1775383832521,-7273.50147508,8.584e-05,2]
[419794577,1775383832532,-100652.49315942,8.584e-05,2]
[419794578,1775383832543,-1254.41808677,8.584e-05,2]
[419794583,1775383836667,-500.0,8.583e-05,2]
[419794584,1775383836698,-500.0,8.583e-05,2]
[419794585,1775383836728,-179.34816115,8.583e-05,2]
[419794586,1775383836773,-500.0,8.583e-05,2]
[419794587,1775383836807,-218.02098367,8.583e-05,2]
[419794588,1775383837696,-500.0,8.583e-05,2]
[419794589,1775383837727,-307.40376416,8.583e-05,2]
[419794590,1775383837762,-500.0,8.583e-05,2]
[419794591,1775383837798,-500.0,8.583e-05,2]
[419794592,1775383837831,-314.78934003,8.583e-05,2]
[419794593,1775383838254,-500.0,8.583e-05,2]
[419794599,1775383839839,-500.0,8.583e-05,2]
[419794600,1775383839870,-500.0,8.583e-05,2]
[419794601,1775383839900,-500.0,8.583e-05,2]
[419794602,1775383839930,-500.0,8.583e-05,2]
[419794606,1775383841582,-500.0,8.583e-05,2]
[419794607,1775383841593,-500.0,8.583e-05,2]
[419794608,1775383841603,-283.29728869,8.583e-05,2]
[419794609,1775383841614,-500.0,8.583e-05,2]
[419794610,1775383841625,-350913.14491475,8.584e-05,2]
[419794611,1775383841637,-420.40620087,8.584e-05,2]
[419794612,1775383841701,-442659.2366258,8.584e-05,2]
[419794613,1775383841710,-1200.0,8.587e-05,2]
[419794614,1775383841720,-278117.74538778,8.588e-05,2]
[419794615,1775383841730,-457.9332,8.593e-05,2]
[419794616,1775383841741,-150.0,8.596e-05,2]
[419794617,1775383841751,-3560.4031,8.613e-05,2]
[419794619,1775383841761,-2500.0,8.613e-05,2]
[419794620,1775383841771,-2070.7998187,8.613e-05,2]
[419794623,1775383841781,-32431.71760639,8.674e-05,2]
[419794625,1775383841790,-500.0,8.684e-05,2]
[419794627,1775383841799,-8522.65096232,8.684e-05,2]
[419794629,1775383841809,-3320.13517053,8.685e-05,2]
[419794630,1775383841818,-24047.29,8.685e-05,2]
[419794631,1775383841828,-500.0,8.693e-05,2]
[419794632,1775383841837,-150.0,8.693e-05,2]
[419794633,1775383841847,-150.60403212,8.693e-05,2]
[419794634,1775383841856,-500.0,8.693e-05,2]
[419794635,1775383841865,-500.0,8.693e-05,2]
[419794636,1775383841874,-4999.99,8.712e-05,2]
[419794637,1775383841884,-104717.99,8.712e-05,2]
[419794638,1775383841893,-150.99,8.712e-05,2]
[419794639,1775383841903,-9999.99,8.712e-05,2]
[419794640,1775383841913,-299.99,8.712e-05,2]
[419794641,1775383841923,-1620.86,8.712e-05,2]
[419794642,1775383841933,-9999.99,8.712e-05,2]
[419794643,1775383841943,-5945.63,8.712e-05,2]
[419794644,1775383841952,-9999.99,8.712e-05,2]
[419794645,1775383841962,-9999.99,8.712e-05,2]
[419794646,1775383841971,-999.99,8.712e-05,2]
[419794647,1775383841982,-1191.01,8.712e-05,2]
[419794648,1775383841992,-14111.56,8.712e-05,2]
[419794649,1775383842002,-219915.06,8.712e-05,2]
[419794650,1775383842012,-7609.78,8.712e-05,2]
[419794651,1775383842022,-10164.29,8.712e-05,2]
[419794652,1775383842032,-9999.99,8.712e-05,2]
[419794653,1775383842041,-150.99,8.712e-05,2]
[419794654,1775383842051,-1210.78,8.712e-05,2]
[419794655,1775383842061,-9999.99,8.712e-05,2]
[419794656,1775383842070,-2175.77,8.712e-05,2]
[419794657,1775383842080,-1733395.2938,8.713e-05,2]
[419794658,1775383842089,-5505.09,8.713e-05,2]
[419794659,1775383842099,-499.99,8.713e-05,2]
[419794660,1775383842108,-7174.37,8.713e-05,2]
[419794661,1775383842118,-153.40766799,8.713e-05,2]
[419794662,1775383842128,-341.60879359,8.713e-05,2]
[419794663,1775383842138,-3564.18757749,8.713e-05,2]
[419794664,1775383842147,-500.0,8.793e-05,2]
[419794665,1775383842157,-30510.9964,8.813e-05,2]
[419794666,1775383842167,-153.02756354,8.867e-05,2]
[419794667,1775383842176,-500.0,8.958e-05,2]
[419794668,1775383842186,-1000.0,9.012e-05,2]
[419794669,1775383842196,-678.50723521,9.038e-05,2]
[419794670,1775383842206,-420.0,9.043e-05,2]
[419794671,1775383842216,-5000.0,9.043e-05,2]
[419794672,1775383842229,-193.0,9.043e-05,2]
[419794673,1775383842239,-364.19001434,9.043e-05,2]
[419794674,1775383842248,-290.25550646,9.043e-05,2]
[419794675,1775383842258,-1000.0,9.111e-05,2]
[419794676,1775383842268,-1000.0,9.111e-05,2]
[419794677,1775383842278,-1000.0,9.111e-05,2]
[419794678,1775383842288,-1000.0,9.111e-05,2]
[419794679,1775383842298,-1000.0,9.111e-05,2]
[419794680,1775383842308,-151.0,9.169e-05,2]
[419794681,1775383842318,-189.02,9.169e-05,2]
[419794682,1775383842328,-500.0,9.232e-05,2]
[419794683,1775383842337,-1000.0,9.241e-05,2]
[419794684,1775383842347,-389.98770916,9.241e-05,2]
[419794685,1775383842357,-1000.0,9.241e-05,2]
[419794686,1775383842367,-494.83286258,9.255e-05,2]
[419794687,1775383842376,-817.4184646,9.341e-05,2]
[419794688,1775383842386,-470.08,9.345e-05,2]
[419794689,1775383842395,-150.0,9.38e-05,2]
[419794690,1775383842406,-5000.0,9.392e-05,2]
[419794691,1775383842415,-250.0,9.392e-05,2]
[419794692,1775383842426,-361.0,9.408e-05,2]
[419794693,1775383842437,-1083.86941036,9.43e-05,2]
[419794694,1775383842447,-1680.0,9.446e-05,2]
[419794695,1775383842456,-255.0,9.455e-05,2]
[419794696,1775383842466,-500.0,9.506e-05,2]
[419794697,1775383842475,-276.0,9.656e-05,2]
[419794698,1775383842485,-1500.0,9.658e-05,2]
[419794699,1775383842495,-1500.0,9.658e-05,2]
[419794700,1775383842505,-1500.0,9.658e-05,2]
[419794701,1775383842515,-1500.0,9.658e-05,2]
[419794702,1775383842525,-503.19697935,9.658e-05,2]
[419794703,1775383842534,-1436.0,9.666e-05,2]
[419794704,1775383842543,-9999.99,9.67e-05,2]
[419794705,1775383842553,-22044.56,9.67e-05,2]
[419794706,1775383842563,-29999.99,9.67e-05,2]
[419794707,1775383842572,-210.0,9.686e-05,2]
[419794708,1775383842582,-1081.0,9.705e-05,2]
[419794709,1775383842592,-618.0,9.724e-05,2]
[419794710,1775383842602,-600.0,9.732e-05,2]
[419794711,1775383842611,-516.36,9.732e-05,2]
[419794712,1775383842621,-1299.0,9.743e-05,2]
[419794713,1775383842631,-1103.0,9.763e-05,2]
[419794714,1775383842640,-500.0,9.78e-05,2]
[419794715,1775383842650,-1428.0,9.782e-05,2]
[419794716,1775383842660,-1608.3186174,9.788e-05,2]
[419794717,1775383842669,-1011.12151388,9.788e-05,2]
[419794718,1775383842679,-254.0,9.801e-05,2]
[419794719,1775383842688,-617.0,9.821e-05,2]
[419794720,1775383842698,-289.0,9.84e-05,2]
[419794721,1775383842708,-326.0,9.859e-05,2]
[419794722,1775383842717,-470.08,9.864e-05,2]
[419794723,1775383842727,-1115.0,9.879e-05,2]